[Event "Titled Tuesday Blitz May 30 Late 2023"]
[White "Rottenwohrer Suarez, Juan"]
[Black "Magallanes, Rey Jomar"]
[WhiteFideId "32068182"]
[BlackFideId "5205948"]
[WhiteElo "2174"]
[BlackElo "2255"]
[Result "1/2-1/2"]
[Round "04"]
[TimeControl "180+2"]
[Date "2023.05.31"]
[WhiteClock "0:00:11"]
[BlackClock "0:01:23"]

1. d4 {[%clk 0:02:58]}  d5 {[%clk 0:02:59]} 2. c4 {[%clk 0:02:58]}  e6 {[%clk 0:03:00]} 3. Nc3 {[%clk 0:02:57]}  Nf6 {[%clk 0:03:00]} 4. cxd5 {[%clk 0:02:57]}  exd5 {[%clk 0:02:59]} 5. Bg5 {[%clk 0:02:57]}  c6 {[%clk 0:03:00]} 6. Qc2 {[%clk 0:02:58]}  Be7 {[%clk 0:03:00]} 7. e3 {[%clk 0:02:58]}  Nbd7 {[%clk 0:03:00]} 8. Bd3 {[%clk 0:02:59]}  O-O {[%clk 0:03:00]} 9. Nge2 {[%clk 0:02:57]}  Re8 {[%clk 0:02:59]} 10. O-O {[%clk 0:02:57]}  Nf8 {[%clk 0:03:00]} 11. Rab1 {[%clk 0:02:57]}  g6 {[%clk 0:03:00]} 12. b4 {[%clk 0:02:55]}  Ne6 {[%clk 0:03:00]} 13. Bh4 {[%clk 0:02:55]}  b5 {[%clk 0:02:57]} 14. Rfd1 {[%clk 0:02:29]}  a5 {[%clk 0:02:55]} 15. bxa5 {[%clk 0:02:23]}  Qxa5 {[%clk 0:02:56]} 16. Bxf6 {[%clk 0:01:57]}  Bxf6 {[%clk 0:02:54]} 17. Rdc1 {[%clk 0:01:13]}  Bd7 {[%clk 0:02:47]} 18. Qb3 {[%clk 0:00:58]}  Reb8 {[%clk 0:02:43]} 19. Rc2 {[%clk 0:00:58]}  Be7 {[%clk 0:02:42]} 20. h3 {[%clk 0:00:52]}  b4 {[%clk 0:02:42]} 21. Nd1 {[%clk 0:00:51]}  c5 {[%clk 0:02:23]} 22. Qxd5 {[%clk 0:00:49]}  Ba4 {[%clk 0:02:22]} 23. Rcb2 {[%clk 0:00:46]}  cxd4 {[%clk 0:02:12]} 24. Qxa5 {[%clk 0:00:44]}  Rxa5 {[%clk 0:02:12]} 25. Nxd4 {[%clk 0:00:45]}  Nxd4 {[%clk 0:02:09]} 26. exd4 {[%clk 0:00:45]}  Rd5 {[%clk 0:02:02]} 27. Ne3 {[%clk 0:00:16]}  Rxd4 {[%clk 0:02:01]} 28. Bc2 {[%clk 0:00:16]}  Bc6 {[%clk 0:01:57]} 29. Bb3 {[%clk 0:00:17]}  Bf6 {[%clk 0:01:54]} 30. Re2 {[%clk 0:00:12]}  Be4 {[%clk 0:01:53]} 31. Rd1 {[%clk 0:00:11]}  Rbd8 {[%clk 0:01:48]} 32. Rxd4 {[%clk 0:00:11]}  Bxd4 {[%clk 0:01:48]} 33. Rd2 {[%clk 0:00:09]}  Bf6 {[%clk 0:01:42]} 34. Rxd8+ {[%clk 0:00:06]}  Bxd8 {[%clk 0:01:43]} 35. Nd5 {[%clk 0:00:05]}  Bxd5 {[%clk 0:01:38]} 36. Bxd5 {[%clk 0:00:05]}  Kf8 {[%clk 0:01:39]} 37. Bb3 {[%clk 0:00:05]}  Ke7 {[%clk 0:01:39]} 38. g4 {[%clk 0:00:06]}  f6 {[%clk 0:01:39]} 39. Kg2 {[%clk 0:00:06]}  g5 {[%clk 0:01:38]} 40. f3 {[%clk 0:00:07]}  h6 {[%clk 0:01:38]} 41. Kf2 {[%clk 0:00:07]}  Kd6 {[%clk 0:01:38]} 42. Ke2 {[%clk 0:00:08]}  Ke5 {[%clk 0:01:38]} 43. Kd3 {[%clk 0:00:05]}  Kf4 {[%clk 0:01:37]} 44. Bd5 {[%clk 0:00:04]}  Kg3 {[%clk 0:01:37]} 45. Be4 {[%clk 0:00:04]}  Kxh3 {[%clk 0:01:37]} 46. Bf5 {[%clk 0:00:04]}  Kg3 {[%clk 0:01:35]} 47. Ke4 {[%clk 0:00:04]}  Bc7 {[%clk 0:01:33]} 48. Be6 {[%clk 0:00:05]}  Kh4 {[%clk 0:01:33]} 49. Bf7 {[%clk 0:00:05]}  Bd6 {[%clk 0:01:30]} 50. Bg6 {[%clk 0:00:06]}  Be5 {[%clk 0:01:26]} 51. Bf7 {[%clk 0:00:06]}  Kg3 {[%clk 0:01:26]} 52. Bg6 {[%clk 0:00:07]}  Kf2 {[%clk 0:01:26]} 53. Bf7 {[%clk 0:00:07]}  Ke2 {[%clk 0:01:25]} 54. Bg6 {[%clk 0:00:08]}  Kd2 {[%clk 0:01:26]} 55. Bf7 {[%clk 0:00:08]}  Kc2 {[%clk 0:01:26]} 56. Bb3+ {[%clk 0:00:08]}  Kc3 {[%clk 0:01:25]} 57. Bd5 {[%clk 0:00:08]}  Kd2 {[%clk 0:01:25]} 58. Bb3 {[%clk 0:00:08]}  Ke2 {[%clk 0:01:23]} 59. Bd5 {[%clk 0:00:09]}  Kf2 {[%clk 0:01:23]} 60. Bb3 {[%clk 0:00:09]}  Kg3 {[%clk 0:01:23]} 61. Bf7 {[%clk 0:00:09]}  Kh4 {[%clk 0:01:23]} 62. Bg6 {[%clk 0:00:10]}  Kg3 {[%clk 0:01:23]} 63. Bf7 {[%clk 0:00:11]} 1/2-1/2


[Site "https://www.chess.com"]

[Event "Titled Tuesday Blitz May 30 Late 2023"]
[White "Botez, Alexandra"]
[Black "Vovk, Orest"]
[WhiteFideId "2603365"]
[BlackFideId "14113490"]
[WhiteElo "2040"]
[BlackElo "2215"]
[Result "0-1"]
[Round "04"]
[TimeControl "180+2"]
[Date "2023.05.31"]
[WhiteClock "0:00:07"]
[BlackClock "0:00:11"]

1. d4 {[%clk 0:03:00]}  h6 {[%clk 0:02:47]} 2. c4 {[%clk 0:02:57]}  g5 {[%clk 0:02:46]} 3. Nc3 {[%clk 0:02:48]}  Bg7 {[%clk 0:02:45]} 4. e4 {[%clk 0:02:45]}  c5 {[%clk 0:02:45]} 5. d5 {[%clk 0:02:45]}  Bxc3+ {[%clk 0:02:44]} 6. bxc3 {[%clk 0:02:44]}  d6 {[%clk 0:02:44]} 7. h3 {[%clk 0:02:37]}  Qa5 {[%clk 0:02:44]} 8. Qc2 {[%clk 0:02:35]}  Nf6 {[%clk 0:02:41]} 9. Bd3 {[%clk 0:02:30]}  Nbd7 {[%clk 0:02:40]} 10. Nf3 {[%clk 0:02:30]}  Rg8 {[%clk 0:02:34]} 11. Bd2 {[%clk 0:02:18]}  Nh5 {[%clk 0:02:20]} 12. g3 {[%clk 0:02:06]}  Ng7 {[%clk 0:01:57]} 13. O-O {[%clk 0:02:00]}  f6 {[%clk 0:01:51]} 14. Kg2 {[%clk 0:01:58]}  Ne5 {[%clk 0:01:41]} 15. Nxe5 {[%clk 0:01:57]}  fxe5 {[%clk 0:01:41]} 16. Rab1 {[%clk 0:01:56]}  Qc7 {[%clk 0:01:34]} 17. Rb2 {[%clk 0:01:40]}  Nh5 {[%clk 0:01:30]} 18. Be2 {[%clk 0:01:35]}  Nf4+ {[%clk 0:01:23]} 19. gxf4 {[%clk 0:01:21]}  gxf4+ {[%clk 0:01:23]} 20. Kh2 {[%clk 0:01:21]}  Qd7 {[%clk 0:01:11]} 21. Qd3 {[%clk 0:01:17]}  Rg3 {[%clk 0:01:09]} 22. Bg4 {[%clk 0:01:00]}  Rxd3 {[%clk 0:01:00]} 23. Bxd7+ {[%clk 0:01:00]}  Bxd7 {[%clk 0:00:58]} 24. f3 {[%clk 0:01:00]}  b6 {[%clk 0:00:38]} 25. Kg2 {[%clk 0:00:58]}  Bc8 {[%clk 0:00:35]} 26. Kf2 {[%clk 0:00:12]}  Ba6 {[%clk 0:00:34]} 27. Rg1 {[%clk 0:00:12]}  Kf7 {[%clk 0:00:32]} 28. Rc2 {[%clk 0:00:07]}  Bxc4 {[%clk 0:00:32]} 29. Bc1 {[%clk 0:00:07]}  Rg8 {[%clk 0:00:27]} 30. Rxg8 {[%clk 0:00:06]}  Kxg8 {[%clk 0:00:27]} 31. Bd2 {[%clk 0:00:05]}  b5 {[%clk 0:00:22]} 32. a3 {[%clk 0:00:05]}  Bb3 {[%clk 0:00:18]} 33. Rb2 {[%clk 0:00:05]}  Bd1 {[%clk 0:00:16]} 34. Rxb5 {[%clk 0:00:03]}  Rxd2+ {[%clk 0:00:14]} 35. Ke1 {[%clk 0:00:03]}  Rd3 {[%clk 0:00:14]} 36. Rb7 {[%clk 0:00:04]}  Kf7 {[%clk 0:00:13]} 37. Rxa7 {[%clk 0:00:05]}  Bxf3 {[%clk 0:00:13]} 38. a4 {[%clk 0:00:05]}  Bxe4 {[%clk 0:00:13]} 39. a5 {[%clk 0:00:06]}  Rxc3 {[%clk 0:00:13]} 40. Kd2 {[%clk 0:00:06]}  Rxh3 {[%clk 0:00:12]} 41. Kc1 {[%clk 0:00:06]}  Bxd5 {[%clk 0:00:12]} 42. a6 {[%clk 0:00:07]}  Ra3 {[%clk 0:00:12]} 43. Kb2 {[%clk 0:00:07]}  Ra2+ {[%clk 0:00:12]} 44. Kc3 {[%clk 0:00:07]}  f3 {[%clk 0:00:11]} 0-1


[Site "https://www.chess.com"]

[Event "Titled Tuesday Blitz May 30 Late 2023"]
[White "Baidetskyi, Valentin"]
[Black "Mickiewicz, Piotr"]
[WhiteFideId "14142317"]
[BlackFideId "1114891"]
[WhiteElo "2490"]
[BlackElo "2246"]
[Result "1-0"]
[Round "04"]
[TimeControl "180+2"]
[Date "2023.05.31"]
[WhiteClock "0:00:31"]
[BlackClock "0:01:01"]

1. e4 {[%clk 0:03:00]}  c5 {[%clk 0:02:58]} 2. Nf3 {[%clk 0:02:59]}  e6 {[%clk 0:02:59]} 3. d4 {[%clk 0:02:56]}  cxd4 {[%clk 0:03:00]} 4. Nxd4 {[%clk 0:02:56]}  Nf6 {[%clk 0:03:01]} 5. Nc3 {[%clk 0:02:51]}  d6 {[%clk 0:03:01]} 6. Bd3 {[%clk 0:02:42]}  a6 {[%clk 0:02:59]} 7. f4 {[%clk 0:02:41]}  b5 {[%clk 0:02:59]} 8. a3 {[%clk 0:02:11]}  Nbd7 {[%clk 0:02:57]} 9. Qe2 {[%clk 0:01:58]}  Qc7 {[%clk 0:02:55]} 10. g4 {[%clk 0:01:56]}  Nb6 {[%clk 0:02:48]} 11. g5 {[%clk 0:01:55]}  Nfd7 {[%clk 0:02:46]} 12. h4 {[%clk 0:01:39]}  e5 {[%clk 0:02:40]} 13. Nb3 {[%clk 0:01:12]}  Nc4 {[%clk 0:02:30]} 14. Nd5 {[%clk 0:01:07]}  Qb8 {[%clk 0:02:14]} 15. Bxc4 {[%clk 0:01:04]}  bxc4 {[%clk 0:02:15]} 16. Qxc4 {[%clk 0:01:01]}  Bb7 {[%clk 0:01:25]} 17. Nc7+ {[%clk 0:00:57]}  Kd8 {[%clk 0:01:15]} 18. Nxa8 {[%clk 0:00:57]}  Qxa8 {[%clk 0:01:14]} 19. Bd2 {[%clk 0:00:34]}  Bxe4 {[%clk 0:01:08]} 20. Qxf7 {[%clk 0:00:31]}  Bxh1 {[%clk 0:01:05]} 21. Ba5+ {[%clk 0:00:31]}  Kc8 {[%clk 0:01:01]} 22. Qe8+ {[%clk 0:00:31]} 1-0


[Site "https://www.chess.com"]

[Event "Titled Tuesday Blitz May 30 Late 2023"]
[White "Gasparyan, David"]
[Black "Castaneda, Jhon David"]
[WhiteFideId "13311980"]
[BlackFideId "4405048"]
[WhiteElo "2394"]
[BlackElo "2086"]
[Result "1-0"]
[Round "04"]
[TimeControl "180+2"]
[Date "2023.05.31"]
[WhiteClock "0:00:36"]
[BlackClock "0:00:47"]

1. Nf3 {[%clk 0:03:00]}  d5 {[%clk 0:03:00]} 2. g3 {[%clk 0:03:01]}  Nf6 {[%clk 0:03:00]} 3. Bg2 {[%clk 0:03:01]}  Bf5 {[%clk 0:03:00]} 4. O-O {[%clk 0:03:02]}  e6 {[%clk 0:03:01]} 5. d3 {[%clk 0:03:02]}  Be7 {[%clk 0:03:01]} 6. Qe1 {[%clk 0:03:02]}  O-O {[%clk 0:03:00]} 7. Nc3 {[%clk 0:03:03]}  c6 {[%clk 0:02:58]} 8. e4 {[%clk 0:03:03]}  Bg4 {[%clk 0:02:56]} 9. Ne5 {[%clk 0:03:02]}  Bh5 {[%clk 0:02:56]} 10. h3 {[%clk 0:02:53]}  Nbd7 {[%clk 0:02:50]} 11. Nxd7 {[%clk 0:02:52]}  Nxd7 {[%clk 0:02:50]} 12. g4 {[%clk 0:02:45]}  Bg6 {[%clk 0:02:48]} 13. f4 {[%clk 0:02:45]}  f6 {[%clk 0:02:45]} 14. f5 {[%clk 0:02:39]}  Bc5+ {[%clk 0:02:41]} 15. Kh1 {[%clk 0:02:38]}  exf5 {[%clk 0:02:41]} 16. gxf5 {[%clk 0:02:35]}  Bf7 {[%clk 0:02:40]} 17. exd5 {[%clk 0:02:35]}  Re8 {[%clk 0:02:27]} 18. Qg3 {[%clk 0:02:26]}  Ne5 {[%clk 0:02:22]} 19. Bh6 {[%clk 0:02:23]}  Bf8 {[%clk 0:02:22]} 20. dxc6 {[%clk 0:02:21]}  Nxc6 {[%clk 0:02:21]} 21. Ne4 {[%clk 0:02:15]}  Kh8 {[%clk 0:02:17]} 22. Bf4 {[%clk 0:02:11]}  Qb6 {[%clk 0:02:16]} 23. b3 {[%clk 0:02:07]}  Nd4 {[%clk 0:02:13]} 24. Be3 {[%clk 0:02:00]}  Qd8 {[%clk 0:02:11]} 25. Rf2 {[%clk 0:01:56]}  Rc8 {[%clk 0:02:08]} 26. c3 {[%clk 0:01:48]}  Nc6 {[%clk 0:02:01]} 27. Bf4 {[%clk 0:01:39]}  Qa5 {[%clk 0:01:50]} 28. Raf1 {[%clk 0:01:30]}  Qxf5 {[%clk 0:01:35]} 29. Bg5 {[%clk 0:01:30]}  Qe5 {[%clk 0:01:32]} 30. Qxe5 {[%clk 0:01:24]}  Nxe5 {[%clk 0:01:28]} 31. Nxf6 {[%clk 0:01:22]}  Nxd3 {[%clk 0:01:12]} 32. Nxe8 {[%clk 0:01:19]}  Nxf2+ {[%clk 0:01:11]} 33. Rxf2 {[%clk 0:01:19]}  Kg8 {[%clk 0:01:06]} 34. Nf6+ {[%clk 0:00:42]}  gxf6 {[%clk 0:01:05]} 35. Bxf6 {[%clk 0:00:43]}  b5 {[%clk 0:00:59]} 36. Bd4 {[%clk 0:00:35]}  a5 {[%clk 0:00:56]} 37. Rf5 {[%clk 0:00:35]}  b4 {[%clk 0:00:47]} 38. Rg5+ {[%clk 0:00:36]}  Bg6 {[%clk 0:00:47]} 39. Bd5# {[%clk 0:00:36]} 1-0


[Site "https://www.chess.com"]

[Event "Titled Tuesday Blitz May 30 Late 2023"]
[White "Urbina Perez, Juan Antonio"]
[Black "Iskusnyh, Sergei"]
[WhiteFideId "2217368"]
[BlackFideId "4120027"]
[WhiteElo "2197"]
[BlackElo "2492"]
[Result "0-1"]
[Round "04"]
[TimeControl "180+2"]
[Date "2023.05.31"]
[WhiteClock "0:01:01"]
[BlackClock "0:01:00"]

1. d4 {[%clk 0:02:56]}  Nf6 {[%clk 0:02:59]} 2. Nf3 {[%clk 0:02:54]}  d6 {[%clk 0:02:59]} 3. g3 {[%clk 0:02:52]}  Nbd7 {[%clk 0:02:58]} 4. Bg2 {[%clk 0:02:52]}  e5 {[%clk 0:02:58]} 5. O-O {[%clk 0:02:53]}  c6 {[%clk 0:02:57]} 6. dxe5 {[%clk 0:02:47]}  dxe5 {[%clk 0:02:57]} 7. Re1 {[%clk 0:02:36]}  Be7 {[%clk 0:02:56]} 8. e4 {[%clk 0:02:36]}  O-O {[%clk 0:02:55]} 9. h3 {[%clk 0:02:36]}  Qc7 {[%clk 0:02:54]} 10. Qe2 {[%clk 0:02:33]}  Nc5 {[%clk 0:02:53]} 11. Nc3 {[%clk 0:02:30]}  b5 {[%clk 0:02:52]} 12. a3 {[%clk 0:02:27]}  a5 {[%clk 0:02:50]} 13. Bg5 {[%clk 0:02:28]}  Ba6 {[%clk 0:02:48]} 14. Qe3 {[%clk 0:02:14]}  Ne6 {[%clk 0:02:40]} 15. Bxf6 {[%clk 0:02:12]}  Bxf6 {[%clk 0:02:40]} 16. b4 {[%clk 0:02:07]}  axb4 {[%clk 0:02:30]} 17. axb4 {[%clk 0:02:07]}  Bb7 {[%clk 0:02:29]} 18. Ne2 {[%clk 0:02:02]}  c5 {[%clk 0:02:07]} 19. bxc5 {[%clk 0:01:57]}  Qxc5 {[%clk 0:02:07]} 20. Qxc5 {[%clk 0:01:53]}  Nxc5 {[%clk 0:02:07]} 21. Nc3 {[%clk 0:01:53]}  Rxa1 {[%clk 0:01:53]} 22. Rxa1 {[%clk 0:01:51]}  b4 {[%clk 0:01:51]} 23. Nd5 {[%clk 0:01:49]}  Bxd5 {[%clk 0:01:50]} 24. exd5 {[%clk 0:01:49]}  e4 {[%clk 0:01:50]} 25. Ra5 {[%clk 0:01:43]}  exf3 {[%clk 0:01:45]} 26. Bf1 {[%clk 0:01:44]}  Bd4 {[%clk 0:01:39]} 27. d6 {[%clk 0:01:41]}  Ne4 {[%clk 0:01:36]} 28. d7 {[%clk 0:01:38]}  Bxf2+ {[%clk 0:01:33]} 29. Kh2 {[%clk 0:01:36]}  Bxg3+ {[%clk 0:01:33]} 30. Kg1 {[%clk 0:01:36]}  Rd8 {[%clk 0:01:28]} 31. Bb5 {[%clk 0:01:35]}  g6 {[%clk 0:01:27]} 32. Ra6 {[%clk 0:01:34]}  Kg7 {[%clk 0:01:26]} 33. Ra4 {[%clk 0:01:28]}  Bd6 {[%clk 0:01:22]} 34. Ra6 {[%clk 0:01:27]}  Bc5+ {[%clk 0:01:22]} 35. Kh2 {[%clk 0:01:22]}  f5 {[%clk 0:01:13]} 36. Re6 {[%clk 0:01:17]}  g5 {[%clk 0:01:09]} 37. Re8 {[%clk 0:01:16]}  Bd6+ {[%clk 0:01:07]} 38. Kg1 {[%clk 0:01:15]}  Bc7 {[%clk 0:01:06]} 39. Bc6 {[%clk 0:01:12]}  Nf6 {[%clk 0:01:02]} 40. Re7+ {[%clk 0:01:11]}  Kg6 {[%clk 0:01:02]} 41. Bxf3 {[%clk 0:01:03]}  Rxd7 {[%clk 0:01:01]} 42. Rxd7 {[%clk 0:01:01]}  Nxd7 {[%clk 0:01:00]} 0-1


[Site "https://www.chess.com"]

[Event "Titled Tuesday Blitz May 30 Late 2023"]
[White "brm72"]
[Black "Zenin, Dmitry"]
[BlackFideId "4127897"]
[WhiteElo "2586"]
[BlackElo "2215"]
[Result "1-0"]
[Round "04"]
[TimeControl "180+2"]
[Date "2023.05.31"]
[WhiteClock "0:01:12"]
[BlackClock "0:00:01"]

1. e4 {[%clk 0:03:00]}  e5 {[%clk 0:02:59]} 2. Nf3 {[%clk 0:03:00]}  Nc6 {[%clk 0:02:59]} 3. d4 {[%clk 0:03:00]}  exd4 {[%clk 0:02:59]} 4. Nxd4 {[%clk 0:03:01]}  Bc5 {[%clk 0:02:59]} 5. Nb3 {[%clk 0:03:01]}  Bb6 {[%clk 0:02:59]} 6. Qe2 {[%clk 0:03:02]}  Nge7 {[%clk 0:02:58]} 7. Nc3 {[%clk 0:03:02]}  O-O {[%clk 0:02:58]} 8. Be3 {[%clk 0:03:02]}  f5 {[%clk 0:02:57]} 9. O-O-O {[%clk 0:02:57]}  d6 {[%clk 0:02:42]} 10. exf5 {[%clk 0:02:49]}  Nxf5 {[%clk 0:02:42]} 11. Bxb6 {[%clk 0:02:48]}  axb6 {[%clk 0:02:41]} 12. Qd2 {[%clk 0:02:49]}  Be6 {[%clk 0:02:11]} 13. f4 {[%clk 0:02:34]}  Qh4 {[%clk 0:01:40]} 14. Kb1 {[%clk 0:02:25]}  Rae8 {[%clk 0:01:23]} 15. Bd3 {[%clk 0:02:19]}  Kh8 {[%clk 0:01:13]} 16. g3 {[%clk 0:02:18]}  Qh3 {[%clk 0:01:09]} 17. Bf1 {[%clk 0:02:10]}  Qg4 {[%clk 0:01:06]} 18. Be2 {[%clk 0:02:10]}  Qh3 {[%clk 0:00:58]} 19. Bf3 {[%clk 0:02:08]}  Bc8 {[%clk 0:00:26]} 20. Ne4 {[%clk 0:02:06]}  Qh6 {[%clk 0:00:22]} 21. Ng5 {[%clk 0:02:03]}  Qf6 {[%clk 0:00:21]} 22. Rhe1 {[%clk 0:02:01]}  h6 {[%clk 0:00:18]} 23. Ne4 {[%clk 0:02:00]}  Qd8 {[%clk 0:00:18]} 24. Nc3 {[%clk 0:02:00]}  Qf6 {[%clk 0:00:16]} 25. Nd5 {[%clk 0:01:57]}  Qd8 {[%clk 0:00:16]} 26. Bh5 {[%clk 0:01:58]}  Rxe1 {[%clk 0:00:14]} 27. Rxe1 {[%clk 0:01:59]}  Nce7 {[%clk 0:00:14]} 28. Bf3 {[%clk 0:01:50]}  Nxd5 {[%clk 0:00:13]} 29. Qxd5 {[%clk 0:01:51]}  c6 {[%clk 0:00:12]} 30. Qd3 {[%clk 0:01:49]}  Re8 {[%clk 0:00:11]} 31. Re2 {[%clk 0:01:45]}  Rxe2 {[%clk 0:00:10]} 32. Bxe2 {[%clk 0:01:45]}  Qe7 {[%clk 0:00:09]} 33. Bg4 {[%clk 0:01:40]}  Qf6 {[%clk 0:00:08]} 34. a4 {[%clk 0:01:38]}  Be6 {[%clk 0:00:07]} 35. Qe4 {[%clk 0:01:36]}  Kg8 {[%clk 0:00:06]} 36. Nd2 {[%clk 0:01:32]}  Kf7 {[%clk 0:00:05]} 37. Bh5+ {[%clk 0:01:31]}  Ke7 {[%clk 0:00:05]} 38. Nf3 {[%clk 0:01:28]}  Kd7 {[%clk 0:00:04]} 39. Bg4 {[%clk 0:01:27]}  Ne7 {[%clk 0:00:03]} 40. Bxe6+ {[%clk 0:01:24]}  Qxe6 {[%clk 0:00:04]} 41. Qd3 {[%clk 0:01:18]}  Qd5 {[%clk 0:00:03]} 42. Qe2 {[%clk 0:01:15]}  Nf5 {[%clk 0:00:02]} 43. Nd2 {[%clk 0:01:11]}  Nd4 {[%clk 0:00:01]} 44. Qd3 {[%clk 0:01:11]}  Qh1+ {[%clk 0:00:01]} 45. Ka2 {[%clk 0:01:12]}  Qd5+ {[%clk 0:00:01]} 46. b3 {[%clk 0:01:12]} 1-0


[Site "https://www.chess.com"]

[Event "Titled Tuesday Blitz May 30 Late 2023"]
[White "Lalanne, Pablo"]
[Black "Kavutskiy, Konstantin"]
[WhiteFideId "112151"]
[BlackFideId "2026384"]
[WhiteElo "2120"]
[BlackElo "2323"]
[Result "1-0"]
[Round "04"]
[TimeControl "180+2"]
[Date "2023.05.31"]
[WhiteClock "0:01:20"]
[BlackClock "0:00:07"]

1. e4 {[%clk 0:03:00]}  c5 {[%clk 0:02:59]} 2. Nf3 {[%clk 0:03:00]}  Nc6 {[%clk 0:02:59]} 3. d4 {[%clk 0:02:59]}  cxd4 {[%clk 0:02:59]} 4. Nxd4 {[%clk 0:03:00]}  Nf6 {[%clk 0:02:59]} 5. Nc3 {[%clk 0:02:59]}  e5 {[%clk 0:02:59]} 6. Ndb5 {[%clk 0:02:59]}  d6 {[%clk 0:03:00]} 7. Bg5 {[%clk 0:02:58]}  a6 {[%clk 0:03:00]} 8. Na3 {[%clk 0:02:59]}  b5 {[%clk 0:03:01]} 9. Bxf6 {[%clk 0:02:59]}  gxf6 {[%clk 0:02:59]} 10. Nd5 {[%clk 0:03:00]}  Bg7 {[%clk 0:02:59]} 11. c3 {[%clk 0:03:00]}  Ne7 {[%clk 0:02:49]} 12. Nxe7 {[%clk 0:02:54]}  Qxe7 {[%clk 0:02:48]} 13. Nc2 {[%clk 0:02:55]}  f5 {[%clk 0:02:42]} 14. exf5 {[%clk 0:02:50]}  O-O {[%clk 0:02:28]} 15. Ne3 {[%clk 0:02:49]}  Bh6 {[%clk 0:02:19]} 16. Nd5 {[%clk 0:02:40]}  Qh4 {[%clk 0:02:15]} 17. f6 {[%clk 0:02:27]}  Kh8 {[%clk 0:01:27]} 18. Be2 {[%clk 0:02:17]}  Bb7 {[%clk 0:01:21]} 19. O-O {[%clk 0:02:07]}  Rg8 {[%clk 0:01:18]} 20. g3 {[%clk 0:01:52]}  Bf4 {[%clk 0:00:38]} 21. Bf3 {[%clk 0:01:43]}  e4 {[%clk 0:00:28]} 22. Bg2 {[%clk 0:01:38]}  Bxg3 {[%clk 0:00:14]} 23. fxg3 {[%clk 0:01:34]}  Qg5 {[%clk 0:00:14]} 24. Nf4 {[%clk 0:01:27]}  Qxf6 {[%clk 0:00:11]} 25. Qd4 {[%clk 0:01:23]}  Qxd4+ {[%clk 0:00:11]} 26. cxd4 {[%clk 0:01:24]}  Rac8 {[%clk 0:00:12]} 27. Rac1 {[%clk 0:01:23]}  b4 {[%clk 0:00:11]} 28. d5 {[%clk 0:01:22]}  f5 {[%clk 0:00:10]} 29. Bh3 {[%clk 0:01:21]}  Rgf8 {[%clk 0:00:08]} 30. Rxc8 {[%clk 0:01:21]}  Rxc8 {[%clk 0:00:06]} 31. Bxf5 {[%clk 0:01:21]}  Rc2 {[%clk 0:00:06]} 32. Bxe4 {[%clk 0:01:19]}  Rxb2 {[%clk 0:00:07]} 33. Rf2 {[%clk 0:01:20]} 1-0


[Site "https://www.chess.com"]

[Event "Titled Tuesday Blitz May 30 Late 2023"]
[White "K2JW"]
[Black "Odegov, Artem"]
[BlackFideId "34183644"]
[WhiteElo "2365"]
[BlackElo "2300"]
[Result "1/2-1/2"]
[Round "04"]
[TimeControl "180+2"]
[Date "2023.05.31"]
[WhiteClock "0:00:02"]
[BlackClock "0:00:02"]

1. d4 {[%clk 0:03:00]}  c5 {[%clk 0:03:00]} 2. d5 {[%clk 0:03:00]}  Nf6 {[%clk 0:02:59]} 3. c4 {[%clk 0:02:59]}  e5 {[%clk 0:03:00]} 4. Nc3 {[%clk 0:02:57]}  d6 {[%clk 0:03:00]} 5. e4 {[%clk 0:02:56]}  Be7 {[%clk 0:03:01]} 6. Be2 {[%clk 0:02:47]}  O-O {[%clk 0:03:01]} 7. Be3 {[%clk 0:02:41]}  Nbd7 {[%clk 0:03:01]} 8. g4 {[%clk 0:02:28]}  a6 {[%clk 0:03:01]} 9. g5 {[%clk 0:02:08]}  Ne8 {[%clk 0:03:00]} 10. h4 {[%clk 0:02:06]}  b5 {[%clk 0:02:59]} 11. cxb5 {[%clk 0:02:04]}  axb5 {[%clk 0:03:00]} 12. Bxb5 {[%clk 0:02:02]}  Rb8 {[%clk 0:02:59]} 13. Nge2 {[%clk 0:01:48]}  Qa5 {[%clk 0:02:57]} 14. a4 {[%clk 0:01:40]}  Nc7 {[%clk 0:02:53]} 15. Ng3 {[%clk 0:01:21]}  Nb6 {[%clk 0:02:29]} 16. O-O {[%clk 0:00:57]}  f6 {[%clk 0:02:13]} 17. Qh5 {[%clk 0:00:34]}  g6 {[%clk 0:02:13]} 18. Qh6 {[%clk 0:00:26]}  Rf7 {[%clk 0:02:13]} 19. gxf6 {[%clk 0:00:26]}  Bxf6 {[%clk 0:02:06]} 20. h5 {[%clk 0:00:24]}  Bg7 {[%clk 0:02:05]} 21. Qg5 {[%clk 0:00:24]}  h6 {[%clk 0:02:06]} 22. Qd8+ {[%clk 0:00:12]}  Kh7 {[%clk 0:01:49]} 23. hxg6+ {[%clk 0:00:12]}  Kxg6 {[%clk 0:01:50]} 24. Qxd6+ {[%clk 0:00:13]}  Kh7 {[%clk 0:01:49]} 25. Nh5 {[%clk 0:00:09]}  Bh3 {[%clk 0:01:47]} 26. Nxg7 {[%clk 0:00:08]}  Rxg7+ {[%clk 0:01:29]} 27. Kh2 {[%clk 0:00:09]}  Bxf1 {[%clk 0:01:25]} 28. Rxf1 {[%clk 0:00:09]}  Nc8 {[%clk 0:01:19]} 29. Qxh6+ {[%clk 0:00:07]}  Kg8 {[%clk 0:01:19]} 30. Rg1 {[%clk 0:00:04]}  Rxg1 {[%clk 0:01:05]} 31. Kxg1 {[%clk 0:00:05]}  Qb6 {[%clk 0:01:04]} 32. Qg5+ {[%clk 0:00:04]}  Kf7 {[%clk 0:01:03]} 33. Qxe5 {[%clk 0:00:03]}  Nd6 {[%clk 0:00:58]} 34. Bg5 {[%clk 0:00:03]}  Ndxb5 {[%clk 0:00:49]} 35. Qe7+ {[%clk 0:00:03]}  Kg6 {[%clk 0:00:49]} 36. axb5 {[%clk 0:00:03]}  Re8 {[%clk 0:00:45]} 37. Qd7 {[%clk 0:00:01]}  Kxg5 {[%clk 0:00:35]} 38. Qf5+ {[%clk 0:00:02]}  Kh6 {[%clk 0:00:34]} 39. Qh3+ {[%clk 0:00:02]}  Kg7 {[%clk 0:00:34]} 40. Kf1 {[%clk 0:00:01]}  c4 {[%clk 0:00:28]} 41. Qg3+ {[%clk 0:00:02]}  Kf7 {[%clk 0:00:25]} 42. Qf4+ {[%clk 0:00:03]}  Kg8 {[%clk 0:00:16]} 43. Qg3+ {[%clk 0:00:03]}  Kf8 {[%clk 0:00:16]} 44. Qf4+ {[%clk 0:00:03]}  Ke7 {[%clk 0:00:16]} 45. e5 {[%clk 0:00:04]}  Kd8 {[%clk 0:00:07]} 46. e6 {[%clk 0:00:04]}  Nxb5 {[%clk 0:00:04]} 47. Qf7 {[%clk 0:00:04]}  Qc7 {[%clk 0:00:02]} 48. Nxb5 {[%clk 0:00:04]}  Qxf7 {[%clk 0:00:02]} 49. exf7 {[%clk 0:00:05]}  Rf8 {[%clk 0:00:03]} 50. Nd6 {[%clk 0:00:04]}  Ke7 {[%clk 0:00:03]} 51. Nxc4 {[%clk 0:00:04]}  Kxf7 {[%clk 0:00:02]} 52. Ke2 {[%clk 0:00:04]}  Ke7 {[%clk 0:00:02]} 53. Kd3 {[%clk 0:00:05]}  Rxf2 {[%clk 0:00:02]} 54. Kc3 {[%clk 0:00:05]}  Kd7 {[%clk 0:00:02]} 55. Kd4 {[%clk 0:00:04]}  Rh2 {[%clk 0:00:03]} 56. Kc5 {[%clk 0:00:04]}  Rh1 {[%clk 0:00:01]} 57. b4 {[%clk 0:00:04]}  Rc1 {[%clk 0:00:01]} 58. b5 {[%clk 0:00:05]}  Kc7 {[%clk 0:00:02]} 59. b6+ {[%clk 0:00:04]}  Kb7 {[%clk 0:00:02]} 60. d6 {[%clk 0:00:05]}  Rd1 {[%clk 0:00:02]} 61. Ne5 {[%clk 0:00:03]}  Rc1+ {[%clk 0:00:02]} 62. Nc4 {[%clk 0:00:04]}  Rd1 {[%clk 0:00:02]} 63. Kb5 {[%clk 0:00:04]}  Rd5+ {[%clk 0:00:02]} 64. Kb4 {[%clk 0:00:04]}  Kc6 {[%clk 0:00:02]} 65. d7 {[%clk 0:00:02]}  Kxd7 {[%clk 0:00:01]} 66. Kc3 {[%clk 0:00:02]}  Kc6 {[%clk 0:00:01]} 67. Kb4 {[%clk 0:00:03]}  Rh5 {[%clk 0:00:02]} 68. Kb3 {[%clk 0:00:03]}  Kb7 {[%clk 0:00:02]} 69. Kb4 {[%clk 0:00:03]}  Rh4 {[%clk 0:00:03]} 70. Kb3 {[%clk 0:00:04]}  Rh5 {[%clk 0:00:04]} 71. Kb4 {[%clk 0:00:04]}  Kc6 {[%clk 0:00:04]} 72. Kb3 {[%clk 0:00:05]}  Rh4 {[%clk 0:00:05]} 73. Kb4 {[%clk 0:00:05]}  Rf4 {[%clk 0:00:04]} 74. Kb3 {[%clk 0:00:06]}  Kc5 {[%clk 0:00:04]} 75. b7 {[%clk 0:00:05]}  Rf3+ {[%clk 0:00:04]} 76. Ka4 {[%clk 0:00:05]}  Rf8 {[%clk 0:00:05]} 77. Ne5 {[%clk 0:00:04]}  Rf4+ {[%clk 0:00:01]} 78. Ka5 {[%clk 0:00:04]}  Rb4 {[%clk 0:00:01]} 79. Nd7+ {[%clk 0:00:03]}  Kc6 {[%clk 0:00:02]} 80. Kxb4 {[%clk 0:00:02]}  Kxb7 {[%clk 0:00:02]} 1/2-1/2


[Site "https://www.chess.com"]